bitfinex/quotes_BTCUSD_20260104
["timestamp","ask_amount","ask_price","bid_price","bid_amount"]
[1767488753042,0.01094475,91368.0,91364.0,0.01094523]
[1767488753526,0.0656681,91369.0,91364.0,0.05902746]
[1767488753527,0.01094463,91369.0,91364.0,0.05902746]
[1767488753726,0.03286391,91375.0,91370.0,0.01094451]
[1767488753925,0.02519687,91387.0,91369.0,0.000999]
[1767488753926,0.01094283,91384.0,91377.0,0.01094367]
[1767488754353,0.02192,91383.0,91377.0,0.01094367]
[1767488754559,0.02192,91383.0,91379.0,0.01094343]
[1767488754760,0.03286295,91383.0,91379.0,0.01094343]
[1767488754977,0.02192,91382.0,91380.0,0.05902554]
[1767488755163,0.02245225,91380.0,91377.0,0.04808223]
[1767488755377,0.02245225,91380.0,91375.0,0.05902614]
[1767488755378,0.01094343,91379.0,91375.0,0.05902614]
[1767488756026,0.01094355,91378.0,91375.0,0.04808223]
[1767488756223,0.01094391,91375.0,91372.0,0.0590265]
[1767488756428,0.01150894,91372.0,91370.0,0.01094451]
[1767488756640,0.01150894,91372.0,91365.0,0.05472536]
[1767488756872,0.01094475,91368.0,91365.0,0.01094511]
[1767488757279,0.01094475,91368.0,91364.0,0.01094523]
[1767488757909,0.01094475,91368.0,91364.0,0.06567105]
[1767488758132,0.05472234,91371.0,91363.0,0.05902757]
[1767488758133,0.01094391,91375.0,91369.0,0.05472315]
[1767488758470,0.01094379,91376.0,91372.0,0.04808223]
[1767488759026,0.06566347,91375.0,91372.0,0.04808223]
[1767488759225,0.02245321,91372.0,91369.0,0.04808223]
[1767488760061,0.07717501,91372.0,91369.0,0.04808223]
[1767488760288,0.02245321,91372.0,91369.0,0.04808223]
[1767488760577,0.03670581,91372.0,91369.0,0.05472315]
[1767488760760,0.01050994,91372.0,91370.0,0.02952525]
[1767488760957,0.01094403,91374.0,91370.0,0.02952525]
[1767488761192,0.01094403,91374.0,91369.0,0.06566778]
[1767488761411,0.02192,91386.0,91376.0,0.01094379]
[1767488761635,0.00010729,91386.0,91382.0,0.05471529]
[1767488761836,0.00010729,91386.0,91376.0,0.01094379]
[1767488761837,0.000999,91382.0,91376.0,0.01094379]
[1767488762304,0.06565779,91383.0,91376.0,0.01094379]
[1767488762548,0.06565779,91383.0,91367.0,0.21889625]
[1767488762549,0.01094367,91377.0,91373.0,0.01094415]
[1767488762716,0.00010729,91386.0,91366.0,0.01094499]
[1767488762717,0.01094439,91371.0,91366.0,0.01094499]
[1767488762866,0.000999,91373.0,91370.0,0.01094451]
[1767488763080,0.06666438,91373.0,91366.0,0.01094499]
[1767488763290,0.01094451,91370.0,91367.0,0.01094487]
[1767488763494,0.06566635,91371.0,91367.0,0.01094487]
[1767488763495,0.01094439,91371.0,91367.0,0.01094487]
[1767488764221,0.01094403,91374.0,91370.0,0.01094451]
[1767488764424,0.06566396,91375.0,91370.0,0.01094451]
[1767488764919,0.01094463,91369.0,91366.0,0.01094499]
[1767488765067,0.02245345,91370.0,91366.0,0.01094499]
[1767488765269,0.02245345,91370.0,91362.0,0.000152]
[1767488765270,0.01094475,91368.0,91362.0,0.000152]
[1767488765487,0.05472621,91364.0,91362.0,0.00010784]
[1767488766327,0.01094487,91367.0,91362.0,0.0110533]
[1767488766929,0.01094499,91366.0,91363.0,0.01094534]
[1767488767107,0.06566611,91372.0,91368.0,0.01094475]
[1767488767310,0.01094415,91373.0,91367.0,0.01094487]
[1767488767311,0.01150894,91368.0,91367.0,0.01094487]
[1767488767528,0.01050994,91368.0,91367.0,0.01094487]
[1767488767731,0.01094427,91372.0,91369.0,0.01094463]
[1767488768310,0.01094439,91371.0,91367.0,0.01094487]
[1767488768526,0.01094427,91372.0,91371.0,0.04665004]
[1767488768671,0.06566539,91373.0,91372.0,0.04565104]
[1767488769042,0.06567045,91366.0,91363.0,0.04665004]
[1767488769264,0.01094499,91366.0,91363.0,0.04665004]
[1767488769490,0.01094499,91366.0,91363.0,0.05759538]
[1767488770372,0.05472555,91365.0,91363.0,0.04665004]
[1767488770576,0.05472555,91365.0,91362.0,0.00010784]
[1767488770577,0.01050994,91363.0,91362.0,0.00010784]
[1767488771988,0.01050994,91363.0,91353.0,0.01094654]
[1767488771989,0.01094606,91357.0,91353.0,0.01094654]
[1767488773028,0.01094618,91356.0,91353.0,0.01094654]
[1767488773366,0.01094678,91351.0,91348.0,0.04665004]
[1767488773490,0.00994802,91349.0,91348.0,0.00010744]
[1767488773996,0.0109463,91355.0,91352.0,0.01094666]
[1767488774509,0.06567733,91356.0,91352.0,0.01094666]
[1767488774908,0.05473214,91354.0,91350.0,0.0109469]
[1767488775108,0.0224556,91352.0,91348.0,0.00010744]
[1767488775317,0.06568071,91351.0,91348.0,0.00010744]
[1767488775512,0.05473513,91349.0,91348.0,0.00010744]
[1767488775712,0.01050994,91352.0,91348.0,0.04675748]
[1767488775961,0.06567762,91356.0,91349.0,0.06568215]
[1767488776107,0.0456763,91354.0,91350.0,0.05473397]
[1767488776307,0.0456763,91354.0,91351.0,0.01094678]
[1767488776508,0.11135492,91354.0,91349.0,0.06568215]
[1767488776731,0.01094642,91354.0,91351.0,0.01094678]
[1767488776939,0.02192,91355.0,91352.0,0.01094666]
[1767488777338,0.0328663,91355.0,91352.0,0.01094666]
[1767488777964,0.02192,91354.0,91351.0,0.01094678]
[1767488778141,0.0109463,91355.0,91352.0,0.04665004]
[1767488778343,0.0328663,91355.0,91354.0,0.04665004]
[1767488778648,0.0328663,91355.0,91354.0,0.04565104]
[1767488779116,0.0328663,91355.0,91352.0,0.04665004]
[1767488779309,0.020921,91355.0,91353.0,0.04665004]
[1767488779514,0.02192,91355.0,91353.0,0.04665004]
[1767488780133,0.06567381,91361.0,91352.0,0.01094666]
[1767488780134,0.05472648,91364.0,91359.0,0.01094582]
[1767488780337,0.01094546,91362.0,91359.0,0.05759586]
[1767488780533,0.01094546,91362.0,91359.0,0.04665004]
[1767488780773,0.06567325,91362.0,91359.0,0.04665004]
[1767488781593,0.01050994,91359.0,91354.0,0.05759646]
[1767488781803,0.01094594,91358.0,91355.0,0.05759634]
[1767488782132,0.01094582,91359.0,91355.0,0.05755218]
[1767488782338,0.01094558,91361.0,91356.0,0.06567703]
[1767488782572,0.01094546,91362.0,91359.0,0.01094582]
[1767488783338,0.03386506,91361.0,91357.0,0.0427565]
[1767488783978,0.01094546,91362.0,91358.0,0.01094594]
[1767488784647,0.01094558,91361.0,91358.0,0.01094594]
[1767488785485,0.0109457,91360.0,91356.0,0.01094618]
[1767488785687,0.0109457,91360.0,91343.0,0.21895386]
[1767488785688,0.02145612,91356.0,91352.0,0.01094666]
[1767488786110,0.00951094,91356.0,91354.0,0.05473211]
[1767488786627,0.0109457,91360.0,91356.0,0.01094618]
[1767488787207,0.01094558,91361.0,91357.0,0.0656764]
[1767488787409,0.03286534,91363.0,91359.0,0.01094582]
[1767488787633,0.0109457,91360.0,91357.0,0.01094606]
[1767488787996,0.01094558,91361.0,91357.0,0.01094606]
[1767488789226,0.02192,91360.0,91357.0,0.01094606]
[1767488789679,0.01094558,91361.0,91357.0,0.01094606]
[1767488789873,0.02192,91359.0,91356.0,0.06567659]
[1767488790096,0.02192,91360.0,91359.0,0.04997618]
[1767488790259,0.03286558,91361.0,91359.0,0.03900225]
[1767488790449,0.03286558,91361.0,91359.0,0.03834581]
[1767488791208,0.01094594,91358.0,91354.0,0.0609226]
[1767488791409,0.05473034,91357.0,91354.0,0.04997618]
[1767488791665,0.0109463,91355.0,91348.0,0.00010744]
[1767488791887,0.01094678,91351.0,91348.0,0.00010744]
[1767488792229,0.01094678,91351.0,91348.0,0.01105458]
[1767488792448,0.0095105,91348.0,91347.0,0.01094726]
[1767488792654,0.0581421,91348.0,91347.0,0.01094726]
[1767488792859,0.01094678,91351.0,91348.0,0.05721464]
[1767488793086,0.06568055,91352.0,91351.0,0.0462675]
[1767488793382,0.02054733,91351.0,91347.0,0.06568359]
[1767488793582,0.01954833,91351.0,91347.0,0.06568359]
[1767488793758,0.01954833,91351.0,91349.0,0.01094702]
[1767488794939,0.00954833,91351.0,91349.0,0.01090286]
[1767488796462,0.00954833,91351.0,91349.0,0.06563745]
[1767488797098,0.01094642,91354.0,91349.0,0.06563745]
[1767488797757,0.01094654,91353.0,91349.0,0.01090286]
[1767488798153,0.01094654,91353.0,91349.0,0.00990386]
[1767488798613,0.01094654,91353.0,91350.0,0.0462675]
[1767488798819,0.04230389,91355.0,91354.0,0.0462675]
[1767488798989,0.05325019,91355.0,91351.0,0.0462675]
[1767488799191,0.01567928,91353.0,91349.0,0.00990386]
[1767488800249,0.05473377,91352.0,91347.0,0.05099972]
[1767488800902,0.06568189,91350.0,91344.0,0.01094762]
[1767488801118,0.06568189,91350.0,91346.0,0.01094738]
[1767488801119,0.01094702,91349.0,91346.0,0.01094738]
[1767488801555,0.01094714,91348.0,91345.0,0.0109475]
[1767488801761,0.01094678,91351.0,91347.0,0.01094726]
[1767488802007,0.0109469,91350.0,91345.0,0.06568448]
[1767488802223,0.01094702,91349.0,91344.0,0.06568565]
[1767488802430,0.01094726,91347.0,91344.0,0.01094762]
[1767488803152,0.01094714,91348.0,91344.0,0.0656857]
[1767488803354,0.04854155,91347.0,91342.0,0.04232019]
[1767488803516,0.01094702,91349.0,91342.0,0.04232019]
[1767488803915,0.01094702,91349.0,91345.0,0.0109475]
[1767488805177,0.01094678,91351.0,91334.0,0.01094882]
[1767488805178,0.01094822,91339.0,91334.0,0.01094882]
[1767488805380,0.02192,91346.0,91334.0,9.005e-05]
[1767488805583,0.06569208,91336.0,91334.0,9.005e-05]
[1767488805754,0.06569208,91336.0,91334.0,4.589e-05]
[1767488806149,0.00994958,91336.0,91334.0,4.589e-05]
[1767488806863,0.00994958,91336.0,91334.0,8.9e-07]
[1767488807492,0.01094834,91338.0,91334.0,0.06569375]
[1767488807693,0.01094762,91344.0,91334.0,8.9e-07]
[1767488807896,0.03286678,91351.0,91346.0,0.01094738]
[1767488808051,0.02192,91350.0,91348.0,0.01094714]
[1767488808279,0.02192,91350.0,91347.0,0.01094726]
[1767488808475,0.01094678,91351.0,91347.0,0.01094726]
[1767488808855,0.0109469,91350.0,91347.0,0.01090726]
[1767488809050,0.01094702,91349.0,91346.0,0.01090225]
[1767488810034,0.0109469,91350.0,91346.0,0.01090225]
[1767488810582,0.01094702,91349.0,91346.0,0.01090225]
[1767488811313,0.06568185,91350.0,91346.0,0.01090225]
[1767488811679,0.01094702,91349.0,91345.0,0.0109475]
[1767488812027,0.01094702,91349.0,91342.0,0.01094786]
[1767488812028,0.01094738,91346.0,91342.0,0.01094786]
[1767488812236,0.01094786,91342.0,91338.0,0.01094834]
[1767488812635,0.0109475,91345.0,91334.0,8.9e-07]
[1767488812636,0.01094846,91337.0,91334.0,8.9e-07]
[1767488812799,0.0547435,91336.0,91334.0,8.9e-07]
[1767488813200,0.04854155,91336.0,91334.0,8.9e-07]
[1767488813404,0.05949013,91336.0,91330.0,0.05474644]
[1767488813769,0.03854155,91336.0,91333.0,0.06569344]
[1767488813971,0.01094798,91341.0,91338.0,0.01094834]
[1767488814140,0.01094786,91342.0,91337.0,0.05474198]
[1767488814343,0.01094798,91341.0,91338.0,0.05721584]
[1767488814667,0.06568761,91342.0,91336.0,0.01094858]
[1767488814874,0.07669846,91344.0,91334.0,0.01094882]
[1767488814875,0.01094834,91338.0,91334.0,0.01094882]
[1767488815022,0.05474098,91340.0,91335.0,0.0109487]
[1767488815222,0.05474098,91340.0,91336.0,0.0462675]
[1767488815642,0.05474224,91338.0,91331.0,0.01094918]
[1767488815845,0.05474224,91338.0,91330.0,0.10101359]
[1767488815846,0.01,91336.0,91330.0,0.0462675]
[1767488816021,0.01094882,91334.0,91327.0,0.0462675]
[1767488816209,0.01094882,91334.0,91326.0,0.02196]
[1767488816210,0.06569323,91334.0,91326.0,0.08765869]
[1767488816405,0.01094918,91331.0,91327.0,0.01094966]
[1767488816658,0.01094918,91331.0,91326.0,0.01094978]
[1767488816859,0.05474832,91327.0,91325.0,0.000152]
[1767488817085,0.01094942,91329.0,91325.0,0.000152]
[1767488817291,0.06569741,91328.0,91325.0,0.000152]
[1767488817870,0.01094942,91329.0,91325.0,0.0111019]
[1767488818080,0.05474463,91335.0,91329.0,0.01194842]
[1767488818223,0.01094882,91334.0,91329.0,0.01194842]
[1767488818581,0.01094894,91333.0,91329.0,0.01094942]
[1767488818765,0.01094894,91333.0,91330.0,0.0109493]
[1767488819072,0.03290846,91337.0,91333.0,0.000999]
[1767488819690,0.01094882,91334.0,91331.0,0.0462675]
[1767488819872,0.01094882,91334.0,91330.0,0.0109493]
[1767488820233,0.00994982,91334.0,91330.0,0.06569582]
[1767488821245,0.01094858,91336.0,91333.0,0.01094894]
[1767488821448,0.01094822,91339.0,91333.0,0.10988238]
[1767488821854,0.01094822,91339.0,91334.0,0.05474367]
[1767488822438,0.01094822,91339.0,91336.0,0.01094858]
[1767488822638,0.01094798,91341.0,91336.0,0.01094858]
[1767488822880,0.0109481,91340.0,91336.0,0.01094858]
[1767488823231,0.0109481,91340.0,91335.0,0.0109487]
[1767488823552,0.01094834,91338.0,91334.0,0.01094882]
[1767488823765,0.01094834,91338.0,91333.0,0.01094894]
[1767488824189,0.04557236,91337.0,91333.0,0.01094894]
[1767488824390,0.000999,91333.0,91330.0,0.0109493]
[1767488824705,0.01094834,91338.0,91333.0,0.01094894]
[1767488824911,0.01094834,91338.0,91335.0,0.0109487]
[1767488825089,0.01094822,91339.0,91335.0,0.0109487]
[1767488825409,0.000999,91335.0,91334.0,0.01094882]
[1767488825608,0.01568983,91339.0,91335.0,0.04870908]
[1767488825809,0.06568805,91341.0,91337.0,0.04866397]
[1767488826058,0.05474116,91339.0,91335.0,0.0109487]
[1767488826341,0.06568938,91339.0,91335.0,1e-08]
[1767488826887,0.06568938,91339.0,91335.0,0.01094871]
[1767488827149,0.01094834,91338.0,91335.0,1e-08]
[1767488827932,0.01094822,91339.0,91338.0,0.000999]
[1767488828242,0.01094822,91339.0,91335.0,0.01094871]
[1767488828468,0.0109481,91340.0,91336.0,0.0656915]
[1767488828648,0.01094798,91341.0,91337.0,0.01094846]
[1767488829925,0.0109481,91340.0,91336.0,0.01094858]
[1767488830559,0.01094822,91339.0,91335.0,1e-08]
[1767488831829,0.06569006,91338.0,91335.0,1e-08]
[1767488832266,0.01094822,91339.0,91335.0,0.06569209]
[1767488832477,0.01094822,91339.0,91335.0,0.01094871]
[1767488832680,0.01094834,91338.0,91335.0,0.01094871]
[1767488832889,0.01094834,91338.0,91335.0,1e-08]
[1767488833098,0.01094822,91339.0,91335.0,0.01094871]
[1767488833433,0.0109481,91340.0,91337.0,0.01094846]
[1767488833857,0.06568529,91345.0,91337.0,0.05474193]
[1767488834058,0.01094786,91342.0,91337.0,0.03495149]
[1767488834186,0.01094786,91342.0,91339.0,0.01094822]
[1767488834386,0.01094798,91341.0,91338.0,0.01094834]
[1767488835206,0.01094798,91341.0,91337.0,0.01094846]
[1767488835207,0.0109481,91340.0,91337.0,0.01094846]
[1767488835402,0.000999,91338.0,91335.0,0.01094871]
[1767488835740,0.000999,91338.0,91336.0,0.05474292]
[1767488835933,0.01094798,91341.0,91337.0,0.01094846]
[1767488837179,0.06568543,91345.0,91338.0,0.06569006]
[1767488837309,0.01094702,91349.0,91338.0,0.06569006]
[1767488837310,0.0656826,91349.0,91340.0,0.0109481]
[1767488837644,0.03290726,91347.0,91343.0,0.01094774]
[1767488837807,0.01094738,91346.0,91343.0,0.01094774]
[1767488838015,0.03290726,91347.0,91344.0,0.01094762]
[1767488838214,0.01094738,91346.0,91342.0,0.06568719]
[1767488838552,0.01094738,91346.0,91342.0,0.00994886]
[1767488838768,0.01094738,91346.0,91343.0,0.01094774]
[1767488838984,0.0109475,91345.0,91341.0,0.0547399]
[1767488839188,0.04557236,91343.0,91339.0,0.05474061]
[1767488839487,0.01094762,91344.0,91339.0,0.05474061]
[1767488839839,0.03290726,91347.0,91346.0,0.04870908]
[1767488840066,0.01,91346.0,91344.0,0.04870908]
[1767488840276,0.03290726,91347.0,91344.0,0.04870908]
[1767488840676,0.03290726,91347.0,91343.0,0.05965682]
[1767488841751,0.01094738,91346.0,91343.0,0.04870908]
[1767488842579,0.06568472,91346.0,91343.0,0.04870908]
[1767488843669,0.01094738,91346.0,91343.0,0.04870908]
[1767488844401,0.01094738,91346.0,91343.0,0.01094774]
[1767488844528,0.04557236,91345.0,91342.0,0.01094786]
[1767488844913,0.01003999,91345.0,91339.0,0.01094822]
[1767488845100,0.01094738,91346.0,91340.0,0.04870908]
[1767488845234,0.01094738,91346.0,91342.0,0.04870908]
[1767488845432,0.08764407,91347.0,91346.0,0.04870908]
[1767488845634,0.01094738,91346.0,91342.0,0.05965694]
[1767488845938,0.0766968,91347.0,91343.0,0.04870908]
[1767488847003,0.01094738,91346.0,91343.0,0.04870908]
[1767488847468,0.0109475,91345.0,91342.0,0.01094786]
[1767488847808,0.0109475,91345.0,91342.0,0.05965694]
[1767488848422,0.03290726,91347.0,91345.0,0.000999]
[1767488848661,0.03290726,91347.0,91343.0,0.01094774]
[1767488849059,0.03290726,91347.0,91344.0,0.04870908]
[1767488849686,0.03190826,91347.0,91344.0,0.05228221]
[1767488849889,0.03190826,91347.0,91344.0,0.05127038]
[1767488850449,0.03190826,91347.0,91343.0,0.01094774]
[1767488850450,0.01094738,91346.0,91343.0,0.01094774]
[1767488850658,0.000999,91344.0,91343.0,0.01094774]
[1767488850850,0.01094738,91346.0,91342.0,0.06568673]
[1767488851058,0.01094738,91346.0,91343.0,0.04960181]
[1767488851263,0.03190826,91347.0,91343.0,0.06054955]
[1767488852467,0.0109457,91360.0,91350.0,0.04941981]
[1767488852676,0.0657252,91360.0,91356.0,0.01094618]
[1767488852881,0.0657252,91360.0,91355.0,0.02842321]
[1767488852882,0.000999,91356.0,91355.0,0.02842321]
[1767488853062,0.01094594,91358.0,91355.0,0.0109463]
[1767488853269,0.01094594,91358.0,91354.0,0.01094642]
[1767488853477,0.01094582,91359.0,91356.0,0.01094618]
[1767488853694,0.000999,91356.0,91353.0,0.01094654]
[1767488853918,0.01094726,91347.0,91340.0,0.0109481]
[1767488854122,0.01094726,91347.0,91342.0,0.01094786]
[1767488854332,0.01094738,91346.0,91342.0,0.01094786]
[1767488854748,0.01094726,91347.0,91342.0,0.01094786]
[1767488854749,0.01094726,91347.0,91343.0,0.01094774]
[1767488854958,0.01094702,91349.0,91344.0,0.0656857]
[1767488855163,0.01094702,91349.0,91345.0,0.0109475]
[1767488855733,0.01094714,91348.0,91344.0,0.01084762]
[1767488856589,0.01094714,91348.0,91345.0,0.0109475]
[1767488856767,0.01094702,91349.0,91345.0,0.0109475]
[1767488857391,1e-08,91376.0,91373.0,0.01094415]
[1767488857570,0.02196,91382.0,91378.0,0.01094355]
[1767488857767,0.01094223,91389.0,91381.0,0.00994419]
[1767488857952,0.06565557,91386.0,91382.0,0.04941981]
[1767488858154,0.06565557,91386.0,91382.0,4e-08]
[1767488858155,0.06565628,91385.0,91382.0,4e-08]
[1767488858355,0.01094367,91377.0,91374.0,0.04778682]
[1767488858567,0.01094403,91374.0,91367.0,0.06036468]
[1767488858768,0.01094427,91372.0,91369.0,0.04941981]
[1767488859397,0.01094427,91372.0,91367.0,0.01094487]
[1767488859727,0.01094427,91372.0,91367.0,0.01084487]
[1767488859890,0.01094427,91372.0,91368.0,0.01094475]
[1767488860096,0.01094415,91373.0,91368.0,0.01094475]
[1767488860295,0.0656611,91379.0,91371.0,0.01094439]
[1767488860502,0.05967264,91378.0,91377.0,0.00089159]
[1767488860884,0.01094355,91378.0,91373.0,0.01094415]
[1767488861103,0.01094355,91378.0,91374.0,0.01094403]
[1767488861611,0.01094355,91378.0,91373.0,0.01094415]
[1767488861819,0.01094343,91379.0,91374.0,0.01094403]
[1767488862205,0.01094355,91378.0,91374.0,0.01094403]
[1767488862638,0.000107,91374.0,91373.0,0.01094415]
[1767488862820,0.01094355,91378.0,91374.0,0.01094403]
[1767488862955,0.01094355,91378.0,91373.0,0.01094415]
[1767488863162,0.01094367,91377.0,91373.0,0.01094415]
[1767488863364,0.01094355,91378.0,91374.0,0.01094403]
[1767488863592,0.01094367,91377.0,91374.0,0.04941981]
[1767488863793,0.01094355,91378.0,91374.0,0.04941981]
[1767488864205,0.01094343,91379.0,91378.0,0.000999]
[1767488864407,0.01094379,91376.0,91372.0,0.01094427]
[1767488864736,0.01094355,91378.0,91373.0,0.01094415]
[1767488865168,0.01094355,91378.0,91374.0,0.01094403]
[1767488865388,0.01094367,91377.0,91372.0,0.01094427]
[1767488865589,0.01094355,91378.0,91374.0,0.01094403]
[1767488865792,0.01094343,91379.0,91374.0,0.01094403]
[1767488866272,0.01094355,91378.0,91374.0,0.01094403]
[1767488866937,0.01094355,91378.0,91375.0,0.04941981]
[1767488867133,0.06566189,91378.0,91372.0,0.04941981]
[1767488867319,0.01094367,91377.0,91373.0,0.06036396]
[1767488867520,0.01094355,91378.0,91373.0,0.06036396]
[1767488867785,0.01094355,91378.0,91368.0,0.06566849]
[1767488867786,0.01094403,91374.0,91368.0,0.06566849]
[1767488867951,0.01094487,91367.0,91360.0,0.0109457]
[1767488868132,0.01094487,91367.0,91360.0,0.00010741]
[1767488868133,0.01094534,91363.0,91360.0,0.00010741]
[1767488868331,0.01094534,91363.0,91360.0,0.04952722]
[1767488868546,0.01094523,91364.0,91363.0,0.000999]
[1767488868795,0.01094523,91364.0,91360.0,0.06047292]
[1767488869007,0.01094511,91365.0,91360.0,0.06047292]
[1767488869204,0.04872909,91364.0,91361.0,0.01094558]
[1767488869371,0.05967443,91363.0,91356.0,0.01094618]
[1767488869573,0.01094534,91363.0,91357.0,0.01094606]
[1767488869772,0.05472854,91360.0,91354.0,0.01094642]
[1767488869973,0.01094558,91361.0,91356.0,0.01094618]
[1767488870189,0.01094558,91361.0,91358.0,0.04941981]
[1767488870361,0.01094546,91362.0,91361.0,0.04941981]
[1767488870805,0.01094558,91361.0,91356.0,0.06036599]
[1767488870954,0.01094558,91361.0,91358.0,0.04941981]
[1767488871223,0.01094534,91363.0,91361.0,0.01]
[1767488871425,0.00994634,91363.0,91361.0,0.01]
[1767488872272,0.00994634,91363.0,91359.0,0.01094582]
[1767488872476,0.01094463,91369.0,91364.0,0.01094523]
[1767488872678,0.01094475,91368.0,91364.0,0.01094523]
[1767488872829,0.01094451,91370.0,91366.0,0.01094499]
[1767488873027,0.04872909,91368.0,91359.0,0.28485994]
[1767488873275,0.04872909,91368.0,91359.0,0.25892545]
[1767488873428,0.05967384,91368.0,91361.0,0.05472744]
[1767488873627,0.05967384,91368.0,91363.0,0.01094534]
[1767488873925,0.05967384,91368.0,91364.0,0.01094523]
[1767488874276,0.01094487,91367.0,91363.0,0.01094534]
[1767488874631,0.06566755,91370.0,91363.0,0.06567208]
[1767488874632,0.01094451,91370.0,91363.0,0.06567208]
[1767488874842,0.02192,91371.0,91368.0,0.06566807]
[1767488875050,0.01094367,91377.0,91373.0,0.01094415]
[1767488875247,0.00010737,91377.0,91372.0,0.01094427]
[1767488875364,0.01105104,91377.0,91373.0,0.01094415]
[1767488875562,0.01094307,91382.0,91372.0,0.01094427]
[1767488875768,0.01130108,91382.0,91372.0,0.01094427]
[1767488875969,0.05471824,91378.0,91371.0,0.01094439]
[1767488876190,0.01094367,91377.0,91372.0,0.01094427]
[1767488876567,0.01094367,91377.0,91373.0,0.01094415]
[1767488876970,0.01094343,91379.0,91377.0,0.000999]
[1767488877173,0.06566112,91379.0,91377.0,0.010999]
[1767488877379,0.06566112,91379.0,91377.0,0.000999]
[1767488877583,0.0199331,91382.0,91379.0,0.02094343]
[1767488877785,0.04598966,91381.0,91376.0,0.0547188]
[1767488877987,0.04598966,91381.0,91373.0,0.01094415]
[1767488878190,0.04598966,91381.0,91378.0,0.01094355]
[1767488878408,0.03087617,91382.0,91378.0,0.01094355]
[1767488878646,0.06219125,91384.0,91378.0,0.01094355]
[1767488878825,0.06219125,91384.0,91377.0,0.06566151]
[1767488878826,0.01094319,91381.0,91377.0,0.01094367]
[1767488879026,0.01094319,91381.0,91376.0,0.06566259]
[1767488879244,0.05693321,91378.0,91373.0,0.01566472]
[1767488879470,0.04598966,91378.0,91370.0,0.29580445]
[1767488879629,0.04598966,91378.0,91374.0,0.05472009]
[1767488879828,0.04598966,91378.0,91375.0,0.01094391]
[1767488880464,0.01094319,91381.0,91376.0,0.04930578]
[1767488880643,0.0618846,91382.0,91376.0,0.06024957]
[1767488880831,0.0118846,91382.0,91376.0,0.01094379]
[1767488881036,0.01094331,91380.0,91376.0,0.01094379]
[1767488881233,0.21931074,91398.0,91380.0,0.000999]
[1767488881456,0.01094175,91393.0,91387.0,0.01094247]
[1767488881634,0.01094151,91395.0,91391.0,0.01094199]
[1767488881832,0.01094151,91395.0,91391.0,0.01065582]
[1767488882019,0.01109363,91394.0,91390.0,0.01094211]
[1767488882637,0.01094175,91393.0,91389.0,0.01094223]
[1767488882852,0.01,91390.0,91387.0,0.01094247]
[1767488883067,0.009001,91390.0,91387.0,0.01094247]
[1767488883271,0.01094187,91392.0,91388.0,0.01094235]
[1767488883403,0.01094187,91392.0,91388.0,0.00994335]
[1767488883592,0.01094175,91393.0,91389.0,0.01094223]
[1767488883807,0.01099363,91394.0,91389.0,0.01094223]
[1767488884010,0.01094175,91393.0,91389.0,0.01094223]
[1767488884522,0.009001,91389.0,91384.0,0.06565689]
[1767488884739,0.009001,91389.0,91386.0,0.01094259]
[1767488884942,0.06565087,91393.0,91386.0,0.01094259]
[1767488884943,0.03286127,91397.0,91391.0,0.01094199]
[1767488885126,0.01094127,91397.0,91391.0,0.01089783]
[1767488885349,0.00048572,91398.0,91391.0,0.01089783]
[1767488885522,0.000152,91412.0,91409.0,0.01093984]
[1767488885724,0.00025934,91412.0,91411.0,0.05469801]
[1767488885927,0.00025934,91412.0,91409.0,0.06530855]
[1767488886394,0.00025934,91412.0,91409.0,0.01027927]
[1767488886993,0.00025934,91412.0,91409.0,0.00999314]
[1767488887499,0.00025934,91412.0,91410.0,0.05469861]
[1767488887977,0.00025934,91412.0,91409.0,0.00999314]
[1767488888179,0.01093996,91408.0,91403.0,0.01094055]
[1767488888340,0.000999,91409.0,91403.0,0.01094055]
[1767488888341,0.000999,91409.0,91405.0,0.01094032]
[1767488888539,0.00025934,91412.0,91409.0,0.06563876]
[1767488888751,0.00025934,91412.0,91409.0,0.06663775]
[1767488888995,0.00025934,91412.0,91409.0,0.00099899]
[1767488889154,0.00025934,91412.0,91409.0,0.01094083]
[1767488889353,0.00025934,91412.0,91405.0,0.06564191]
[1767488889354,0.04970915,91412.0,91405.0,0.01410294]
[1767488889598,0.04970915,91412.0,91407.0,0.0188029]
[1767488889775,0.06064863,91412.0,91408.0,0.01093996]
[1767488890704,0.000998,91408.0,91406.0,0.0328602]
[1767488890901,0.01119882,91412.0,91408.0,0.01093996]
[1767488891119,0.00025934,91412.0,91409.0,0.01093984]
[1767488891543,0.000999,91409.0,91408.0,0.01093996]
[1767488891731,0.00025934,91412.0,91409.0,0.01093984]
[1767488892081,0.01119882,91412.0,91408.0,0.01093996]
[1767488892482,0.01119882,91412.0,91409.0,0.01093984]
[1767488892699,0.01119882,91412.0,91408.0,0.01093996]
[1767488892904,0.000999,91409.0,91408.0,0.01093996]
[1767488893318,0.00025934,91412.0,91409.0,0.01093984]
[1767488893496,0.00025934,91412.0,91409.0,0.01065371]
[1767488893862,0.01093936,91413.0,91406.0,0.08756063]
[1767488893863,0.01563617,91413.0,91406.0,0.0328602]
[1767488894026,0.0109396,91411.0,91407.0,0.01094008]
[1767488894435,0.01093948,91412.0,91407.0,0.01094008]
[1767488894732,0.28485994,91420.0,91407.0,0.01094008]
[1767488894733,0.010939,91416.0,91410.0,0.01065362]
[1767488894912,0.01093912,91415.0,91410.0,0.01065362]
[1767488895113,0.01093936,91413.0,91406.0,0.0547008]
[1767488895358,0.03877246,91413.0,91406.0,0.0268677]
[1767488895681,0.01093948,91412.0,91407.0,0.01094008]
[1767488895973,0.01093948,91412.0,91406.0,0.0378079]
[1767488896391,0.0109396,91411.0,91407.0,0.01094008]
[1767488896601,0.01093912,91415.0,91404.0,0.03286044]
[1767488896602,0.01094032,91405.0,91404.0,0.02192]
[1767488896806,0.01093924,91414.0,91405.0,0.01193932]
[1767488897104,0.05469628,91414.0,91407.0,0.0547004]
[1767488897270,0.01093936,91413.0,91408.0,0.01093996]
[1767488897694,0.010939,91416.0,91411.0,0.05469801]
[1767488897870,0.010939,91416.0,91411.0,0.06563754]
[1767488898072,0.01093912,91415.0,91411.0,0.0109396]
[1767488898273,0.0109396,91411.0,91406.0,0.04434]
[1767488898510,0.01093924,91414.0,91407.0,0.04930578]
[1767488899013,0.05469914,91410.0,91404.0,0.01094044]
[1767488899176,0.01094008,91407.0,91403.0,0.03286055]
[1767488899375,0.0109396,91411.0,91406.0,0.05470089]
[1767488899601,0.01093984,91409.0,91403.0,0.06252238]
[1767488899915,0.01093996,91408.0,91403.0,0.07346293]
[1767488900297,0.01093984,91409.0,91405.0,0.01094032]
[1767488900499,0.01093828,91422.0,91414.0,0.01093924]
[1767488900681,0.0109384,91421.0,91415.0,0.01093912]
[1767488900882,0.01093852,91420.0,91415.0,0.01093912]
[1767488901089,0.03285804,91424.0,91419.0,0.01093864]
[1767488901284,0.03285804,91424.0,91416.0,0.010939]
[1767488901285,0.000999,91419.0,91416.0,0.010939]
[1767488901703,0.0109384,91421.0,91417.0,0.01093888]
[1767488901924,0.01093852,91420.0,91416.0,0.010939]
[1767488902143,0.0109384,91421.0,91417.0,0.01093888]
[1767488902325,0.01093852,91420.0,91416.0,0.010939]